[Event "FIDE World Cup O12-A 2024"]
[Site "Batumi"]
[Date "2024.06.23"]
[Round "1.1"]
[White "Guo, Ethan"]
[Black "Yerzhanuly Yernur"]
[Result "0-1"]
[ECO "C06"]
[WhiteElo "2136"]
[BlackElo "1810"]
[Annotator "NA RC"]
[PlyCount "68"]
[EventDate "2024.06.23"]
[EventType "swiss"]
[EventCountry "GEO"]
[SourceTitle "playchess.com"]
[Source "ChessBase"]
[SourceQuality "1"]
[TimeControl "5400+30"]

1. e4 {[%emt 0:00:01]} e6 {[%emt 0:00:06]} 2. d4 {[%emt 0:00:04]} d5 {[%emt 0:00:06]} 3. Nd2 {[%emt 0:00:05]} Nf6 {[%emt 0:00:05]} 4. e5 {[%emt 0:00:04]} Nfd7 {[%emt 0:00:06]} 5. Bd3 {[%emt 0:00:04]} c5 {[%emt 0:00:08]} 6. c3 {[%emt 0:00:04]} Nc6 {[%emt 0:00:08]} 7. Ngf3 {[%emt 0:00:04]} g6 {[%emt 0:01:01]} 8. O-O {[%emt 0:00:11]} Bg7 {[%emt 0:00:16]} 9. Re1 {[%emt 0:00:14]} O-O {[%emt 0:00:38]} 10. Nf1 {[%emt 0:00:58]} cxd4 {[%emt 0:00:19]} 11. cxd4 {[%emt 0:00:12]} Qb6 {[%emt 0:00:52]} 12. Bc2 {[%emt 0:09:00]} f6 {[%emt 0:00:08]} 13. exf6 {[%emt 0:01:21]} Nxf6 {[%emt 0:00:12]} 14. Rb1 {[%emt 0:13:21]} Bd7 {[%emt 0:00:42]} 15. h3 {[%emt 0:00:50]} Nb4 {[%emt 0:03:55]} 16. Bb3 {[%emt 0:00:44]} Bb5 {[%emt 0:00:22]} 17. Ne5 {[%emt 0:03:04]} Ne4 {[%emt 0:00:38]} 18. Be3 {[%emt 0:01:15]} Nxf2 {[%emt 0:00:31]} 19. Bxf2 {[%emt 0:01:03]} Rxf2 {[%emt 0:00:10]} 20. Kxf2 {[%emt 0:11:01]} Bxe5 {[%emt 0:00:01]} 21. Rxe5 {[%emt 0:00:39]} Nd3+ {[%emt 0:00:08]} 22. Kg1 {[%emt 0:00:30]} Nxe5 {[%emt 0:00:08]} 23. Ne3 {[%emt 0:06:05]} Bd3 {[%emt 0:02:24]} 24. Nc2 {[%emt 0:00:16]} Bxc2 {[%emt 0:00:32]} 25. Bxc2 {[%emt 0:01:20]} Nc6 {[%emt 0:00:09]} 26. Kh1 {[%emt 0:00:23]} Nxd4 {[%emt 0:01:43]} 27. Bd3 {[%emt 0:04:34]} Rf8 {[%emt 0:02:09]} 28. Qg4 {[%emt 0:02:19]} e5 {[%emt 0:01:37]} 29. Qd7 {[%emt 0:00:54]} Qc6 {[%emt 0:00:24]} 30. Qe7 {[%emt 0:01:10]} e4 {[%emt 0:00:16]} 31. Qe5 {[%emt 0:00:57]} Nf5 {[%emt 0:00:19]} 32. Bf1 {[%emt 0:01:33]} Qd6 {[%emt 0:00:08]} 33. Qc3 {[%emt 0:00:48]} Ng3+ {[%emt 0:00:17]} 34. Kg1 {[%emt 0:00:30]} Rxf1+ {[%emt 0:00:07]} 0-1

[Event "FIDE World Cup O12-A 2024"]
[Site "Batumi"]
[Date "2024.06.23"]
[Round "1.2"]
[White "Sobirov, Afruzbek"]
[Black "Syed Abdul Khader"]
[Result "1/2-1/2"]
[ECO "D00"]
[WhiteElo "1789"]
[BlackElo "2050"]
[Annotator "NA RC"]
[PlyCount "86"]
[EventDate "2024.06.23"]
[EventType "swiss"]
[EventCountry "GEO"]
[SourceTitle "playchess.com"]
[Source "ChessBase"]
[SourceQuality "1"]
[TimeControl "5400+30"]

1. d4 {[%emt 0:00:08]} Nf6 {[%emt 0:00:18]} 2. Nc3 {[%emt 0:00:10]} d5 {[%emt 0:00:46]} 3. Bf4 {[%emt 0:00:09]} c5 {[%emt 0:02:23]} 4. e4 {[%emt 0:00:08]} Nxe4 {[%emt 0:01:37]} 5. Nxe4 {[%emt 0:00:06]} dxe4 {[%emt 0:00:07]} 6. dxc5 {[%emt 0:00:06]} Nd7 {[%emt 0:00:46]} 7. b4 {[%emt 0:06:02]} e5 {[%emt 0:00:22]} 8. Bd2 {[%emt 0:01:31]} a5 {[%emt 0:15:58]} 9. a3 {[%emt 0:02:39]} Be7 {[%emt 0:00:42]} 10. Bc4 {[%emt 0:01:49]} O-O {[%emt 0:02:31]} 11. Ne2 {[%emt 0:00:45]} Nf6 {[%emt 0:06:36]} 12. Bg5 {[%emt 0:10:16]} Qc7 {[%emt 0:03:31]} 13. Nc3 {[%emt 0:04:36]} Rd8 {[%emt 0:01:54]} 14. Qb1 {[%emt 0:01:26]} Bf5 {[%emt 0:24:28]} 15. O-O {[%emt 0:13:49]} Nh5 {[%emt 0:10:35]} 16. Nb5 {[%emt 0:03:02]} Qd7 {[%emt 0:00:01]} 17. Bxe7 {[%emt 0:04:06]} Qxe7 {[%emt 0:00:02]} 18. Nd6 {[%emt 0:00:16]} Be6 {[%emt 0:01:00]} 19. Qb3 {[%emt 0:04:34]} Nf4 {[%emt 0:03:28]} 20. Bxe6 {[%emt 0:01:09]} fxe6 {[%emt 0:00:27]} 21. Qe3 {[%emt 0:03:46]} Qh4 {[%emt 0:04:07]} 22. Kh1 {[%emt 0:02:59]} Nd5 {[%emt 0:00:32]} 23. Qxe4 {[%emt 0:03:30]} Qxe4 {[%emt 0:00:56]} 24. Nxe4 {[%emt 0:00:09]} axb4 {[%emt 0:00:12]} 25. axb4 {[%emt 0:00:41]} Nxb4 {[%emt 0:01:13]} 26. c3 {[%emt 0:00:16]} Nd3 {[%emt 0:02:14]} 27. g3 {[%emt 0:02:40]} Rac8 {[%emt 0:02:44]} 28. Rfd1 {[%emt 0:00:42]} Rd5 {[%emt 0:00:32]} 29. Ra5 {[%emt 0:03:13]} b6 {[%emt 0:00:44]} 30. Ra3 {[%emt 0:05:18]} Nxc5 {[%emt 0:01:10]} 31. Re1 {[%emt 0:00:19]} Nxe4 {[%emt 0:14:04]} 32. Rxe4 {[%emt 0:00:14]} Rd2 {[%emt 0:00:00]} 33. Kg1 {[%emt 0:04:05]} Rf8 {[%emt 0:00:00]} 34. Ra7 {[%emt 0:02:01]} Rf5 {[%emt 0:00:00]} 35. g4 {[%emt 0:07:01]} Rfxf2 {[%emt 0:00:00]} 36. Rc4 {[%emt 0:01:09]} h5 {[%emt 0:00:00]} 37. gxh5 {[%emt 0:01:54]} Rfe2 {[%emt 0:00:00]} 38. Kf1 {[%emt 0:00:12]} Rxh2 {[%emt 0:00:00]} 39. Kg1 {[%emt 0:00:12]} Rxh5 {[%emt 0:00:00]} 40. Rg4 {[%emt 0:00:20]} e4 {[%emt 0:02:25]} 41. Rgxg7+ {[%emt 0:01:02]} Kh8 {[%emt 0:00:02]} 42. Rge7 {[%emt 0:00:57]} Rd8 {[%emt 0:01:06]} 43. Rxe6 {[%emt 0:01:01]} Rh7 {[%emt 0:01:39]} 1/2-1/2

[Event "FIDE World Cup O12-A 2024"]
[Site "Batumi"]
[Date "2024.06.23"]
[Round "1.3"]
[White "Wang, Ted"]
[Black "Kozhedub, Ivan"]
[Result "1-0"]
[ECO "A08"]
[WhiteElo "2034"]
[BlackElo "1778"]
[Annotator "NA RC"]
[PlyCount "181"]
[EventDate "2024.06.23"]
[EventType "swiss"]
[EventCountry "GEO"]
[SourceTitle "playchess.com"]
[Source "ChessBase"]
[SourceQuality "1"]
[TimeControl "5400+30"]

1. e4 {[%emt 0:00:03]} c5 {[%emt 0:00:08]} 2. Nf3 {[%emt 0:00:08]} g6 {[%emt 0:00:11]} 3. d3 {[%emt 0:00:06]} Bg7 {[%emt 0:00:15]} 4. g3 {[%emt 0:00:07]} Nc6 {[%emt 0:00:30]} 5. Bg2 {[%emt 0:00:09]} e6 {[%emt 0:00:40]} 6. O-O {[%emt 0:00:25]} Nge7 {[%emt 0:00:23]} 7. Re1 {[%emt 0:01:05]} O-O {[%emt 0:00:48]} 8. Nbd2 {[%emt 0:00:37]} d5 {[%emt 0:01:45]} 9. e5 {[%emt 0:00:43]} f6 {[%emt 0:02:02]} 10. exf6 {[%emt 0:01:10]} Bxf6 {[%emt 0:00:12]} 11. Nf1 {[%emt 0:03:13]} Nf5 {[%emt 0:05:15]} 12. h4 {[%emt 0:03:02]} Bg7 {[%emt 0:05:55]} 13. c3 {[%emt 0:02:45]} Qb6 {[%emt 0:06:40]} 14. N1h2 {[%emt 0:03:34]} e5 {[%emt 0:04:26]} 15. h5 {[%emt 0:07:50]} Bd7 {[%emt 0:07:28]} 16. Ng5 {[%emt 0:13:45]} Nfe7 {[%emt 0:02:21]} 17. hxg6 {[%emt 0:03:45]} hxg6 {[%emt 0:01:15]} 18. Qe2 {[%emt 0:03:57]} Rad8 {[%emt 0:08:18]} 19. Ng4 {[%emt 0:08:44]} Bf5 {[%emt 0:08:38]} 20. Ne3 {[%emt 0:01:28]} Bc8 {[%emt 0:05:19]} 21. a4 {[%emt 0:02:54]} Na5 {[%emt 0:06:58]} 22. c4 {[%emt 0:05:40]} Nb3 {[%emt 0:02:59]} 23. Rb1 {[%emt 0:02:58]} Nd4 {[%emt 0:01:03]} 24. Qf1 {[%emt 0:01:55]} Bh6 {[%emt 0:07:36]} 25. Nxd5 {[%emt 0:02:48]} Nxd5 {[%emt 0:00:21]} 26. cxd5 {[%emt 0:00:20]} Bg4 {[%emt 0:06:43]} 27. Re4 {[%emt 0:06:18]} Bf5 {[%emt 0:04:44]} 28. Rh4 {[%emt 0:01:59]} Bg7 {[%emt 0:02:16]} 29. g4 {[%emt 0:02:11]} Bd7 {[%emt 0:02:04]} 30. Be4 {[%emt 0:01:25]} Rf4 {[%emt 0:01:44]} 31. Bxf4 {[%emt 0:02:39]} exf4 {[%emt 0:00:03]} 32. Nf3 {[%emt 0:03:06]} Qf6 {[%emt 0:03:15]} 33. Qh3 {[%emt 0:01:52]} Nxf3+ {[%emt 0:00:26]} 34. Bxf3 {[%emt 0:00:09]} Bxa4 {[%emt 0:01:38]} 35. Re1 {[%emt 0:02:15]} Re8 {[%emt 0:02:12]} 36. Be4 {[%emt 0:01:28]} Re5 {[%emt 0:01:17]} 37. Ra1 {[%emt 0:05:31]} b5 {[%emt 0:00:33]} 38. Kg2 {[%emt 0:00:41]} Rg5 {[%emt 0:00:34]} 39. Rh1 {[%emt 0:00:33]} Qxb2 {[%emt 0:00:30]} 40. d6 {[%emt 0:00:29]} b4 {[%emt 0:00:24]} 41. Rh7 {[%emt 0:01:12]} Bd7 {[%emt 0:00:18]} 42. Bf3 {[%emt 0:00:42]} Qd4 {[%emt 0:00:47]} 43. Rh8+ {[%emt 0:01:56]} Kf7 {[%emt 0:00:15]} 44. Qh7 {[%emt 0:01:15]} Qxd6 {[%emt 0:00:22]} 45. Qg8+ {[%emt 0:00:06]} Kf6 {[%emt 0:00:15]} 46. Qd8+ {[%emt 0:01:13]} Qe7 {[%emt 0:00:52]} 47. Qxe7+ {[%emt 0:00:18]} Kxe7 {[%emt 0:00:05]} 48. R1h7 {[%emt 0:00:09]} Kf7 {[%emt 0:01:10]} 49. Ra8 {[%emt 0:00:22]} Re5 {[%emt 0:00:32]} 50. Rxa7 {[%emt 0:00:28]} Re7 {[%emt 0:00:14]} 51. Rb7 {[%emt 0:01:26]} Kg8 {[%emt 0:00:40]} 52. Rh1 {[%emt 0:00:16]} Bd4 {[%emt 0:00:18]} 53. Be4 {[%emt 0:01:35]} Kf8 {[%emt 0:00:52]} 54. f3 {[%emt 0:00:31]} Be8 {[%emt 0:00:27]} 55. Rb8 {[%emt 0:00:28]} Kg7 {[%emt 0:00:24]} 56. Ra8 {[%emt 0:00:39]} Bf7 {[%emt 0:00:23]} 57. Ra6 {[%emt 0:00:28]} Bf6 {[%emt 0:00:41]} 58. Kf2 {[%emt 0:01:07]} Bd4+ {[%emt 0:00:07]} 59. Ke2 {[%emt 0:00:26]} Rc7 {[%emt 0:00:45]} 60. Kd2 {[%emt 0:00:22]} Bc3+ {[%emt 0:00:11]} 61. Kc2 {[%emt 0:00:33]} Bf6 {[%emt 0:00:48]} 62. Kb1 {[%emt 0:00:44]} Bd4 {[%emt 0:00:34]} 63. Ra8 {[%emt 0:00:32]} Kf6 {[%emt 0:00:33]} 64. Rc1 {[%emt 0:00:41]} Be3 {[%emt 0:00:33]} 65. Rh1 {[%emt 0:00:21]} Bd4 {[%emt 0:00:28]} 66. Ra6+ {[%emt 0:00:29]} Kg7 {[%emt 0:00:26]} 67. Rh2 {[%emt 0:00:35]} Re7 {[%emt 0:00:13]} 68. Rh4 {[%emt 0:00:15]} Bf2 {[%emt 0:00:18]} 69. Rh1 {[%emt 0:00:14]} Be3 {[%emt 0:00:13]} 70. Ra5 {[%emt 0:00:13]} Bd4 {[%emt 0:00:44]} 71. Rc1 {[%emt 0:00:10]} Rc7 {[%emt 0:00:57]} 72. Ra8 {[%emt 0:00:47]} Kf6 {[%emt 0:00:20]} 73. Rh1 {[%emt 0:00:23]} Re7 {[%emt 0:00:34]} 74. Ra5 {[%emt 0:00:45]} Be3 {[%emt 0:00:19]} 75. Rh2 {[%emt 0:00:24]} Bd4 {[%emt 0:00:21]} 76. Rc2 {[%emt 0:00:42]} Rc7 {[%emt 0:00:35]} 77. Ra4 {[%emt 0:00:33]} Re7 {[%emt 0:00:47]} 78. Ra6+ {[%emt 0:00:08]} Kg5 {[%emt 0:00:45]} 79. Rh2 {[%emt 0:01:02]} Rc7 {[%emt 0:00:21]} 80. Rh1 {[%emt 0:01:01]} Re7 {[%emt 0:00:32]} 81. Rh3 {[%emt 0:00:33]} Rc7 {[%emt 0:00:28]} 82. Ra8 {[%emt 0:00:33]} Bc3 {[%emt 0:00:39]} 83. Ra5 {[%emt 0:00:39]} Bd4 {[%emt 0:00:24]} 84. Rh1 {[%emt 0:00:08]} Kf6 {[%emt 0:00:14]} 85. Ra8 {[%emt 0:00:14]} Kg5 {[%emt 0:00:16]} 86. Ra6 {[%emt 0:00:39]} Be3 {[%emt 0:00:32]} 87. Rh8 {[%emt 0:00:28]} c4 {[%emt 0:01:04]} 88. dxc4 {[%emt 0:00:36]} Rxc4 {[%emt 0:00:08]} 89. Rh7 {[%emt 0:00:16]} Rc7 {[%emt 0:00:45]} 90. Rh8 {[%emt 0:01:03]} Bc4 {[%emt 0:00:40]} 91. Rxg6# {[%emt 0:00:11]} 1-0

[Event "FIDE World Cup O12-A 2024"]
[Site "Batumi"]
[Date "2024.06.23"]
[Round "1.4"]
[White "Haresh, Venkata Narayanaswam"]
[Black "Obidov, Biloliddin"]
[Result "0-1"]
[ECO "B12"]
[WhiteElo "1728"]
[BlackElo "1998"]
[Annotator "NA RC"]
[PlyCount "64"]
[EventDate "2024.06.23"]
[EventType "swiss"]
[EventCountry "GEO"]
[SourceTitle "playchess.com"]
[Source "ChessBase"]
[SourceQuality "1"]
[TimeControl "5400+30"]

1. e4 {[%emt 0:00:05]} c6 {[%emt 0:00:06]} 2. d4 {[%emt 0:00:47]} d5 {[%emt 0:00:07]} 3. e5 {[%emt 0:00:08]} Bf5 {[%emt 0:00:07]} 4. Nf3 {[%emt 0:00:13]} e6 {[%emt 0:00:30]} 5. Be2 {[%emt 0:00:08]} c5 {[%emt 0:01:58]} 6. O-O {[%emt 0:03:06]} Nc6 {[%emt 0:02:13]} 7. Be3 {[%emt 0:04:22]} cxd4 {[%emt 0:13:52]} 8. Nxd4 {[%emt 0:03:48]} Nxd4 {[%emt 0:00:30]} 9. Qxd4 {[%emt 0:08:36]} a6 {[%emt 0:06:13]} 10. c4 {[%emt 0:06:30]} Ne7 {[%emt 0:02:47]} 11. Rd1 {[%emt 0:07:11]} Qc8 {[%emt 0:22:03]} 12. Na3 {[%emt 0:12:39]} Nc6 {[%emt 0:02:39]} 13. Qf4 {[%emt 0:04:20]} d4 {[%emt 0:01:04]} 14. Bxd4 {[%emt 0:04:35]} Nxd4 {[%emt 0:00:02]} 15. Qxd4 {[%emt 0:01:44]} Bc5 {[%emt 0:09:02]} 16. Qc3 {[%emt 0:02:03]} O-O {[%emt 0:00:10]} 17. Rac1 {[%emt 0:09:37]} Qc7 {[%emt 0:10:38]} 18. b4 {[%emt 0:02:20]} Be7 {[%emt 0:00:10]} 19. c5 {[%emt 0:02:31]} Bg5 {[%emt 0:03:37]} 20. Ra1 {[%emt 0:09:24]} b6 {[%emt 0:02:36]} 21. Bf3 {[%emt 0:08:48]} Rac8 {[%emt 0:01:29]} 22. c6 {[%emt 0:00:21]} b5 {[%emt 0:00:47]} 23. Nc2 {[%emt 0:03:36]} Bf4 {[%emt 0:00:30]} 24. Re1 {[%emt 0:03:04]} f6 {[%emt 0:01:34]} 25. exf6 {[%emt 0:00:45]} Bxh2+ {[%emt 0:00:45]} 26. Kh1 {[%emt 0:00:01]} Rxf6 {[%emt 0:00:25]} 27. g4 {[%emt 0:01:49]} Bxc2 {[%emt 0:00:39]} 28. Rxe6 {[%emt 0:00:36]} Rxe6 {[%emt 0:00:21]} 29. Bd5 {[%emt 0:00:20]} Be4+ {[%emt 0:00:02]} 30. Bxe4 {[%emt 0:00:54]} Rxe4 {[%emt 0:00:01]} 31. f3 {[%emt 0:00:49]} Be5 {[%emt 0:00:24]} 32. Qd3 {[%emt 0:00:40]} Bxa1 {[%emt 0:00:13]} 0-1

[Event "FIDE World Cup O12-A 2024"]
[Site "Batumi"]
[Date "2024.06.23"]
[Round "1.5"]
[White "Yang, Maxwell"]
[Black "Kristesiashvili, Andria"]
[Result "0-1"]
[ECO "E48"]
[WhiteElo "1979"]
[BlackElo "1728"]
[Annotator "NA RC"]
[PlyCount "108"]
[EventDate "2024.06.23"]
[EventType "swiss"]
[EventCountry "GEO"]
[SourceTitle "playchess.com"]
[Source "ChessBase"]
[SourceQuality "1"]
[TimeControl "5400+30"]

1. d4 {[%emt 0:00:02]} Nf6 {[%emt 0:00:06]} 2. c4 {[%emt 0:00:05]} e6 {[%emt 0:00:10]} 3. Nc3 {[%emt 0:00:06]} Bb4 {[%emt 0:00:11]} 4. e3 {[%emt 0:00:06]} O-O {[%emt 0:02:37]} 5. Bd3 {[%emt 0:00:06]} d5 {[%emt 0:01:33]} 6. cxd5 {[%emt 0:00:14]} exd5 {[%emt 0:00:16]} 7. a3 {[%emt 0:00:07]} Bd6 {[%emt 0:00:41]} 8. Qc2 {[%emt 0:00:16]} a6 {[%emt 0:03:56]} 9. Nf3 {[%emt 0:04:14]} Nbd7 {[%emt 0:09:28]} 10. O-O {[%emt 0:02:21]} Re8 {[%emt 0:05:14]} 11. h3 {[%emt 0:01:47]} Nf8 {[%emt 0:05:29]} 12. Bd2 {[%emt 0:01:53]} Bd7 {[%emt 0:02:58]} 13. Rae1 {[%emt 0:01:02]} Qc8 {[%emt 0:01:51]} 14. Nh2 {[%emt 0:11:30]} Ng6 {[%emt 0:19:01]} 15. f4 {[%emt 0:07:11]} c5 {[%emt 0:08:25]} 16. Nf3 {[%emt 0:11:56]} c4 {[%emt 0:21:50]} 17. Bxg6 {[%emt 0:04:56]} hxg6 {[%emt 0:00:24]} 18. Ne5 {[%emt 0:01:24]} Bf5 {[%emt 0:02:26]} 19. Qd1 {[%emt 0:02:26]} b5 {[%emt 0:05:06]} 20. Qf3 {[%emt 0:10:17]} Ne4 {[%emt 0:01:25]} 21. Rd1 {[%emt 0:03:13]} Nxc3 {[%emt 0:00:54]} 22. Bxc3 {[%emt 0:00:17]} Be4 {[%emt 0:00:22]} 23. Qg3 {[%emt 0:02:06]} a5 {[%emt 0:01:04]} 24. Qe1 {[%emt 0:01:22]} Qc7 {[%emt 0:01:54]} 25. Rc1 {[%emt 0:08:49]} f6 {[%emt 0:01:29]} 26. Ng4 {[%emt 0:01:07]} Qb6 {[%emt 0:00:49]} 27. Nf2 {[%emt 0:05:52]} Bf5 {[%emt 0:00:58]} 28. Nd1 {[%emt 0:01:42]} b4 {[%emt 0:00:07]} 29. axb4 {[%emt 0:00:13]} axb4 {[%emt 0:00:07]} 30. Bd2 {[%emt 0:00:04]} Ra2 {[%emt 0:00:31]} 31. Rf2 {[%emt 0:07:16]} c3 {[%emt 0:00:31]} 32. bxc3 {[%emt 0:01:01]} b3 {[%emt 0:00:07]} 33. c4 {[%emt 0:02:12]} b2 {[%emt 0:00:55]} 34. Nxb2 {[%emt 0:02:21]} Qxb2 {[%emt 0:00:04]} 35. Ba5 {[%emt 0:01:18]} Qxf2+ {[%emt 0:00:40]} 36. Qxf2 {[%emt 0:00:12]} Rxf2 {[%emt 0:00:05]} 37. Kxf2 {[%emt 0:00:04]} dxc4 {[%emt 0:00:20]} 38. Rxc4 {[%emt 0:00:09]} Ra8 {[%emt 0:00:50]} 39. Bb6 {[%emt 0:01:03]} Ra2+ {[%emt 0:00:35]} 40. Kf3 {[%emt 0:00:17]} Be6 {[%emt 0:00:13]} 41. Rc3 {[%emt 0:00:06]} Bb4 {[%emt 0:00:33]} 42. Rc1 {[%emt 0:05:42]} Bd5+ {[%emt 0:00:10]} 43. e4 {[%emt 0:00:14]} Ra3+ {[%emt 0:00:04]} 44. Kf2 {[%emt 0:00:14]} Bxe4 {[%emt 0:00:11]} 45. Rc8+ {[%emt 0:00:13]} Kh7 {[%emt 0:00:13]} 46. Bc5 {[%emt 0:00:46]} Rc3 {[%emt 0:00:59]} 47. Re8 {[%emt 0:00:12]} Bxc5 {[%emt 0:00:23]} 48. Rxe4 {[%emt 0:01:26]} f5 {[%emt 0:00:16]} 49. Re6 {[%emt 0:00:28]} Bxd4+ {[%emt 0:00:06]} 50. Ke2 {[%emt 0:00:06]} Rg3 {[%emt 0:00:18]} 51. Kf1 {[%emt 0:00:13]} Be3 {[%emt 0:00:16]} 52. Ra6 {[%emt 0:00:15]} Bxf4 {[%emt 0:00:05]} 53. Ra4 {[%emt 0:00:04]} Be5 {[%emt 0:00:14]} 54. Rh4+ {[%emt 0:00:06]} Kg8 {[%emt 0:00:06]} 0-1

[Event "FIDE World Cup O12-A 2024"]
[Site "Batumi"]
[Date "2024.06.23"]
[Round "1.6"]
[White "Lee, Daniel Joshua"]
[Black "Siddhanth Poonja"]
[Result "0-1"]
[ECO "B36"]
[WhiteElo "1717"]
[BlackElo "1958"]
[Annotator "NA RC"]
[PlyCount "74"]
[EventDate "2024.06.23"]
[EventType "swiss"]
[EventCountry "GEO"]
[SourceTitle "playchess.com"]
[Source "ChessBase"]
[SourceQuality "1"]
[TimeControl "5400+30"]

1. e4 {[%emt 0:00:03]} c5 {[%emt 0:00:13]} 2. Nf3 {[%emt 0:00:05]} g6 {[%emt 0:00:08]} 3. c4 {[%emt 0:00:06]} Nc6 {[%emt 0:00:09]} 4. d4 {[%emt 0:00:06]} cxd4 {[%emt 0:00:10]} 5. Nxd4 {[%emt 0:00:07]} Nf6 {[%emt 0:00:15]} 6. Nc3 {[%emt 0:00:09]} d6 {[%emt 0:00:08]} 7. Be2 {[%emt 0:02:49]} Nxd4 {[%emt 0:00:12]} 8. Qxd4 {[%emt 0:00:10]} Bg7 {[%emt 0:00:10]} 9. Be3 {[%emt 0:01:40]} O-O {[%emt 0:00:12]} 10. Qd2 {[%emt 0:00:22]} a5 {[%emt 0:00:13]} 11. a4 {[%emt 0:02:51]} Be6 {[%emt 0:05:58]} 12. O-O {[%emt 0:02:05]} Nd7 {[%emt 0:08:37]} 13. Bd4 {[%emt 0:19:53]} Bxd4 {[%emt 0:05:08]} 14. Qxd4 {[%emt 0:00:09]} Nc5 {[%emt 0:00:19]} 15. Bd1 {[%emt 0:08:44]} Qb6 {[%emt 0:07:48]} 16. Nb5 {[%emt 0:02:59]} Bd7 {[%emt 0:07:20]} 17. b3 {[%emt 0:03:28]} Bc6 {[%emt 0:06:15]} 18. Bc2 {[%emt 0:02:26]} Rfc8 {[%emt 0:05:45]} 19. h4 {[%emt 0:19:21]} Bxb5 {[%emt 0:05:38]} 20. axb5 {[%emt 0:01:20]} e5 {[%emt 0:03:44]} 21. Qe3 {[%emt 0:03:21]} Qd8 {[%emt 0:01:01]} 22. Rfd1 {[%emt 0:04:40]} Ne6 {[%emt 0:00:38]} 23. h5 {[%emt 0:02:02]} Nd4 {[%emt 0:04:31]} 24. Ra2 {[%emt 0:05:28]} Qf6 {[%emt 0:02:25]} 25. Rda1 {[%emt 0:02:31]} b6 {[%emt 0:00:32]} 26. Qd3 {[%emt 0:03:35]} Rab8 {[%emt 0:01:32]} 27. hxg6 {[%emt 0:02:40]} hxg6 {[%emt 0:00:47]} 28. Ra4 {[%emt 0:00:36]} Kg7 {[%emt 0:00:17]} 29. b4 {[%emt 0:01:16]} Qh4 {[%emt 0:00:31]} 30. Bd1 {[%emt 0:02:01]} Rh8 {[%emt 0:00:08]} 31. Qh3 {[%emt 0:00:22]} Qxe4 {[%emt 0:01:13]} 32. Qe3 {[%emt 0:02:49]} Qh4 {[%emt 0:00:08]} 33. Qh3 {[%emt 0:00:10]} Qf6 {[%emt 0:00:10]} 34. Qg3 {[%emt 0:00:50]} Rh6 {[%emt 0:00:09]} 35. bxa5 {[%emt 0:00:39]} Rbh8 {[%emt 0:00:06]} 36. f3 {[%emt 0:00:19]} e4 {[%emt 0:00:16]} 37. f4 {[%emt 0:01:31]} Nf5 {[%emt 0:00:20]} 0-1

[Event "FIDE World Cup O12-A 2024"]
[Site "Batumi"]
[Date "2024.06.23"]
[Round "1.7"]
[White "Bulgak, Damir"]
[Black "Nanayakkara, Sanuk"]
[Result "1-0"]
[ECO "B36"]
[WhiteElo "1931"]
[BlackElo "1714"]
[Annotator "NA RC"]
[PlyCount "123"]
[EventDate "2024.06.23"]
[EventType "swiss"]
[EventCountry "GEO"]
[SourceTitle "playchess.com"]
[Source "ChessBase"]
[SourceQuality "1"]
[TimeControl "5400+30"]

1. e4 {[%emt 0:00:20]} c5 {[%emt 0:00:14]} 2. Nf3 {[%emt 0:00:07]} Nc6 {[%emt 0:00:10]} 3. d4 {[%emt 0:00:12]} cxd4 {[%emt 0:00:10]} 4. Nxd4 {[%emt 0:00:04]} g6 {[%emt 0:00:11]} 5. c4 {[%emt 0:00:23]} Nf6 {[%emt 0:00:23]} 6. Nc3 {[%emt 0:00:33]} Nxd4 {[%emt 0:00:30]} 7. Qxd4 {[%emt 0:00:12]} d6 {[%emt 0:00:03]} 8. Be3 {[%emt 0:02:13]} Bg7 {[%emt 0:00:18]} 9. Be2 {[%emt 0:02:48]} O-O {[%emt 0:00:21]} 10. Qd3 {[%emt 0:01:22]} Be6 {[%emt 0:05:55]} 11. O-O {[%emt 0:03:12]} Qa5 {[%emt 0:01:50]} 12. Rac1 {[%emt 0:00:56]} Rfc8 {[%emt 0:06:53]} 13. b3 {[%emt 0:00:19]} Nd7 {[%emt 0:11:35]} 14. Bd2 {[%emt 0:05:00]} Ne5 {[%emt 0:24:22]} 15. Qg3 {[%emt 0:12:25]} Nc6 {[%emt 0:05:15]} 16. f4 {[%emt 0:03:44]} Nd4 {[%emt 0:11:32]} 17. Qd3 {[%emt 0:07:19]} f5 {[%emt 0:10:20]} 18. Kh1 {[%emt 0:11:00]} fxe4 {[%emt 0:12:35]} 19. Qxe4 {[%emt 0:00:09]} Bf5 {[%emt 0:02:53]} 20. Qe3 {[%emt 0:00:32]} Nc2 {[%emt 0:01:39]} 21. Qf3 {[%emt 0:03:44]} Nd4 {[%emt 0:00:31]} 22. Qf2 {[%emt 0:00:17]} Nc2 {[%emt 0:00:53]} 23. g4 {[%emt 0:02:38]} Bxc3 {[%emt 0:02:27]} 24. Bxc3 {[%emt 0:00:07]} Qxc3 {[%emt 0:00:42]} 25. gxf5 {[%emt 0:00:04]} Qd2 {[%emt 0:00:25]} 26. Bf3 {[%emt 0:06:37]} Qxf2 {[%emt 0:00:42]} 27. Rxf2 {[%emt 0:00:02]} Nb4 {[%emt 0:00:31]} 28. Rg1 {[%emt 0:02:14]} Rab8 {[%emt 0:00:33]} 29. fxg6 {[%emt 0:00:04]} hxg6 {[%emt 0:00:29]} 30. Rxg6+ {[%emt 0:00:10]} Kf7 {[%emt 0:00:34]} 31. f5 {[%emt 0:02:01]} Rc5 {[%emt 0:00:30]} 32. Be4 {[%emt 0:03:15]} Re5 {[%emt 0:00:27]} 33. Re2 {[%emt 0:01:31]} Kf8 {[%emt 0:00:34]} 34. a3 {[%emt 0:01:08]} Nc6 {[%emt 0:00:27]} 35. Bd5 {[%emt 0:00:14]} Rxd5 {[%emt 0:00:34]} 36. cxd5 {[%emt 0:00:04]} Ne5 {[%emt 0:00:08]} 37. Re6 {[%emt 0:01:32]} Rc8 {[%emt 0:00:44]} 38. f6 {[%emt 0:00:15]} exf6 {[%emt 0:00:15]} 39. Rxf6+ {[%emt 0:00:23]} Ke7 {[%emt 0:00:10]} 40. Re6+ {[%emt 0:00:01]} Kd7 {[%emt 0:00:16]} 41. Rg2 {[%emt 0:00:07]} Rc1+ {[%emt 0:00:54]} 42. Rg1 {[%emt 0:00:01]} Rxg1+ {[%emt 0:01:00]} 43. Kxg1 {[%emt 0:00:05]} Nf3+ {[%emt 0:00:07]} 44. Kf2 {[%emt 0:00:18]} Nd4 {[%emt 0:00:01]} 45. Rg6 {[%emt 0:00:22]} Nxb3 {[%emt 0:00:29]} 46. Rg7+ {[%emt 0:00:04]} Kc8 {[%emt 0:00:07]} 47. h4 {[%emt 0:00:01]} Nd4 {[%emt 0:00:19]} 48. Rf7 {[%emt 0:00:10]} Nb3 {[%emt 0:01:17]} 49. Ke3 {[%emt 0:00:20]} Na5 {[%emt 0:00:16]} 50. Rf4 {[%emt 0:00:11]} Nb3 {[%emt 0:01:11]} 51. h5 {[%emt 0:00:06]} Nc5 {[%emt 0:00:11]} 52. h6 {[%emt 0:00:05]} Nd7 {[%emt 0:00:16]} 53. h7 {[%emt 0:00:05]} Ne5 {[%emt 0:00:13]} 54. h8=Q+ {[%emt 0:00:13]} Kc7 {[%emt 0:00:09]} 55. Kd4 {[%emt 0:00:15]} Kb6 {[%emt 0:00:08]} 56. Qd8+ {[%emt 0:00:09]} Kb5 {[%emt 0:00:06]} 57. Qxd6 {[%emt 0:00:06]} Nc4 {[%emt 0:00:09]} 58. Qb4+ {[%emt 0:00:05]} Ka6 {[%emt 0:00:06]} 59. a4 {[%emt 0:00:37]} Nd6 {[%emt 0:00:52]} 60. Qxd6+ {[%emt 0:00:09]} b6 {[%emt 0:00:23]} 61. Qd7 {[%emt 0:00:04]} b5 {[%emt 0:00:47]} 62. Qxb5# {[%emt 0:00:05]} 1-0